bitfinex-derivatives/quotes_ETHF0:USTF0_20250919
["timestamp","ask_amount","ask_price","bid_price","bid_amount"]
[1758273300762,1.46071291,4545.0,4544.9,2.2005]
[1758273300965,1.45975973,4545.0,4544.9,2.4953]
[1758273302263,1.45975973,4545.0,4544.9,2.6988]
[1758273304561,1.45975973,4545.0,4544.9,2.4953]
[1758273304766,1.45975973,4545.0,4544.9,2.2005]
[1758273305265,1.45975973,4545.0,4544.9,2.4953]
[1758273305964,1.45975973,4545.0,4544.9,2.6988]
[1758273311766,1.39905973,4545.0,4544.9,2.8983]
[1758273322875,1.20315973,4545.0,4544.9,2.8983]
[1758273323475,0.98215973,4545.0,4544.9,2.8983]
[1758273323775,1.20315973,4545.0,4544.9,2.8983]
[1758273324475,1.39905973,4545.0,4544.9,2.8983]
[1758273324780,1.68075973,4545.0,4544.9,2.8983]
[1758273327375,3.26028515,4545.0,4544.9,2.8983]
[1758273328279,2.78268515,4545.0,4544.9,2.8983]
[1758273333582,1.20315973,4545.0,4544.9,1.70978359]
[1758273334376,1.68345973,4545.0,4544.9,1.70978359]
[1758273334885,1.40175973,4545.0,4544.9,1.70978359]
[1758273336080,1.68345973,4545.0,4544.9,1.70978359]
[1758273336386,1.68345973,4545.0,4544.4,0.022]
[1758273336387,0.8364,4544.5,4544.4,0.4363]
[1758273336687,1.71445973,4544.5,4544.4,0.4143]
[1758273337386,3.29867725,4544.5,4544.4,0.4143]
[1758273337891,1.83725973,4544.5,4543.0,0.1228]
[1758273338090,1.83725973,4544.5,4543.9,0.4143]
[1758273338091,2.42074426,4544.0,4543.9,0.4143]
[1758273338387,0.76967706,4544.0,4543.9,0.7279]
[1758273338576,0.76967706,4544.0,4543.9,0.94797]
[1758273338777,0.76967706,4544.0,4543.9,0.7279]
[1758273340180,0.76967706,4544.0,4543.9,2.9289]
[1758273341987,0.96707706,4544.0,4543.9,2.9289]
[1758273343077,1.30977706,4544.0,4543.9,2.9289]
[1758273343386,1.43257706,4544.0,4543.5,0.022]
[1758273343576,0.54867706,4543.9,4543.5,0.022]
[1758273343782,0.515,4543.6,4543.5,0.4363]
[1758273343981,0.736,4543.6,4543.5,0.4363]
[1758273344178,1.48327706,4543.6,4543.5,0.4143]
[1758273346087,1.48327706,4543.6,4543.5,0.7279]
[1758273350391,1.70947727,4543.6,4543.5,0.7279]
[1758273352389,1.70947727,4543.6,4542.4,0.4143]
[1758273352390,0.8364,4542.5,4542.4,0.4143]
[1758273352689,1.78514836,4542.5,4542.4,0.2005]
[1758273353390,1.78514836,4542.5,4542.1,0.3136]
[1758273353591,0.7136,4542.2,4542.1,0.5141]
[1758273353785,1.25292368,4542.2,4542.1,0.2005]
[1758273353983,1.47890003,4542.2,4542.1,0.2005]
[1758273354183,0.174,4542.5,4542.4,0.3136]
[1758273354484,0.57,4542.5,4542.4,0.3136]
[1758273356190,0.7284,4542.5,4542.4,0.3136]
[1758273356593,0.5674,4542.4,4542.3,0.72279997]
[1758273356783,0.1986,4542.2,4542.1,0.3206]
[1758273356987,0.5674,4542.2,4542.1,0.3206]
[1758273357492,0.5674,4542.2,4542.1,0.5323]
[1758273360890,0.4084,4542.2,4542.1,0.5323]
[1758273361893,0.5671,4542.2,4542.1,0.5323]
[1758273362092,0.5671,4542.2,4542.1,0.3206]
[1758273363595,0.5671,4542.2,4542.1,0.5235]
[1758273364595,0.4084,4542.2,4542.1,0.5235]
[1758273366100,1.16633509,4542.2,4542.1,0.5235]
[1758273366294,1.16633509,4542.2,4542.1,0.7336]
[1758273366494,1.38733509,4542.2,4542.1,0.7336]
[1758273369103,1.54603509,4542.2,4542.1,0.5235]
[1758273370008,1.54603509,4542.2,4542.1,0.3206]
[1758273371002,1.54603509,4542.2,4542.1,0.5235]
[1758273372311,1.54603509,4542.2,4542.1,0.3206]
[1758273372608,1.54652238,4542.2,4542.1,0.3206]
[1758273373199,1.54652238,4542.2,4542.1,0.5235]
[1758273376611,1.54669793,4542.2,4542.1,0.5235]
[1758273377318,1.38799793,4542.2,4542.1,0.5235]
[1758273377611,1.38799793,4542.2,4542.1,0.7336]
[1758273383214,0.75859793,4542.2,4542.1,0.7336]
[1758273383416,0.97959793,4542.2,4542.1,0.95376]
[1758273383817,0.97959793,4542.2,4542.1,4.95376]
[1758273384118,0.75859793,4542.2,4542.1,4.7336]
[1758273384425,0.75859793,4542.2,4542.1,4.95376]
[1758273384722,0.97959793,4542.2,4542.1,4.95376]
[1758273385320,0.97959793,4542.2,4542.1,4.7336]
[1758273385519,0.97959793,4542.2,4542.1,4.95376]
[1758273385718,0.97959793,4542.2,4542.1,4.7336]
[1758273386722,0.25679793,4542.2,4542.1,4.7336]
[1758273387221,0.25679793,4542.2,4542.1,4.95376]
[1758273387822,0.25679793,4542.2,4542.1,4.7336]
[1758273388021,35.666,4542.9,4542.8,0.7049]
[1758273388221,35.887,4542.9,4542.8,0.7049]
[1758273390323,36.0812,4542.9,4542.8,0.7049]
[1758273390628,0.7071,4542.1,4542.0,0.3401]
[1758273390923,0.9281,4542.1,4542.0,0.2127]
[1758273392532,0.9281,4542.1,4541.8,2.202]
[1758273392533,0.629,4542.1,4541.9,0.298]
[1758273392732,0.7071,4542.0,4541.9,0.298]
[1758273393320,0.7071,4542.0,4541.9,0.5107]
[1758273393526,0.7071,4542.0,4541.9,0.7152]
[1758273396032,0.7071,4542.0,4541.9,0.5107]
[1758273396233,0.7071,4542.0,4541.9,0.298]
[1758273396431,0.2991,4543.3,4543.0,0.2127]
[1758273396628,0.9291,4543.2,4543.1,0.7152]
[1758273398635,1.46321602,4543.2,4543.1,0.7152]
[1758273400134,1.68150562,4543.2,4543.1,0.7152]
[1758273403333,1.45950562,4543.2,4543.1,0.7152]
[1758273403633,1.68050562,4543.2,4543.1,0.7152]
[1758273406128,1.68050562,4543.2,4543.1,0.5107]
[1758273406834,1.38140562,4543.2,4542.4,2.202]
[1758273407035,0.7071,4542.5,4542.4,2.7127]
[1758273407230,1.68050562,4542.5,4542.4,2.7127]
[1758273407431,1.68050562,4542.5,4542.4,2.9172]
[1758273413435,1.38140562,4542.5,4542.4,2.9172]
[1758273413933,0.75240562,4542.5,4542.4,2.9172]
[1758273414134,0.97340562,4542.5,4542.4,3.13734999]
[1758273414329,0.1942,4543.6,4543.5,0.321]
[1758273414530,0.7071,4544.0,4543.9,0.7152]
[1758273414730,0.9281,4544.0,4543.9,0.7152]
[1758273415831,0.7071,4544.0,4543.9,0.5107]
[1758273416037,0.9281,4544.0,4543.9,0.5107]
[1758273416237,0.9281,4544.0,4543.9,0.7152]
[1758273416638,0.7071,4544.0,4543.9,0.7152]
[1758273416837,0.9281,4544.0,4543.9,0.7152]
[1758273417631,0.7071,4544.0,4543.9,0.7152]
[1758273417833,0.9281,4544.0,4543.9,0.7152]
[1758273418038,0.9281,4544.0,4543.9,0.5107]
[1758273418238,0.7071,4544.0,4543.9,0.5107]
[1758273418541,0.9281,4544.0,4543.9,0.7224]
[1758273419236,0.1942,4544.0,4543.9,0.7224]
[1758273419436,35.878,4544.4,4544.3,0.4185]
[1758273419633,36.6119,4544.4,4544.3,0.5064]
[1758273419834,36.6119,4544.4,4544.1,0.2975]
[1758273420229,36.6119,4544.4,4543.6,0.2975]
[1758273423439,38.19643531,4544.4,4543.6,0.2975]
[1758273425743,37.97543531,4544.4,4543.6,0.2975]
[1758273425943,0.206,4543.7,4543.6,0.716]
[1758273426143,0.9399,4543.7,4543.6,0.716]
[1758273426341,1.69153576,4543.7,4543.6,0.716]
[1758273426741,1.47053576,4543.7,4543.6,0.716]
[1758273426942,1.69153576,4543.7,4543.6,0.716]
[1758273430744,0.75163576,4543.7,4543.6,0.716]
[1758273430942,0.97263576,4543.7,4543.6,0.716]
[1758273431143,0.75163576,4543.7,4543.6,0.716]
[1758273431343,0.97263576,4543.7,4543.6,0.716]
[1758273435353,1.17863576,4543.7,4543.6,0.716]
[1758273435549,1.17712345,4543.7,4543.6,0.716]
[1758273436349,0.95612345,4543.7,4543.6,0.716]
[1758273436551,1.48742345,4543.7,4543.6,0.716]
[1758273437053,1.26642345,4543.7,4543.6,0.716]
[1758273437257,1.48742345,4543.7,4543.6,0.716]
[1758273437450,1.26642345,4543.7,4543.6,0.716]
[1758273437651,1.48742345,4543.7,4543.6,0.716]
[1758273438460,1.17712345,4543.7,4543.6,0.716]
[1758273438658,1.48742345,4543.7,4543.6,0.716]
[1758273439168,1.17712345,4543.7,4543.6,0.716]
[1758273440758,1.48742345,4543.7,4543.6,0.716]
[1758273441155,1.69002345,4543.7,4543.6,0.716]
[1758273442955,1.69002345,4543.7,4543.6,0.5064]
[1758273445658,1.37972345,4543.7,4543.5,2.202]
[1758273445858,0.7189,4542.8,4542.7,0.2975]
[1758273446161,1.69002345,4542.8,4542.1,0.2975]
[1758273446353,0.5163,4542.2,4542.1,0.716]
[1758273446556,0.95688002,4542.2,4542.1,0.716]
[1758273446760,1.48742345,4542.2,4542.1,0.716]
[1758273447359,1.17712345,4542.2,4542.1,0.716]
[1758273450964,1.47452345,4542.2,4542.1,0.716]
[1758273451664,1.25352345,4542.2,4542.1,0.716]
[1758273451866,1.47452345,4542.2,4542.1,0.716]
[1758273452065,1.17712345,4542.2,4542.1,0.716]
[1758273452465,1.47452345,4542.2,4542.1,0.716]
[1758273453264,1.25494343,4542.2,4542.1,0.716]
[1758273458564,1.03394343,4542.2,4542.1,0.716]
[1758273458766,0.75154343,4542.2,4542.1,0.716]
[1758273460769,0.95274343,4542.2,4542.1,0.716]
[1758273461269,1.25014343,4542.2,4542.1,0.716]
[1758273462773,0.95274343,4542.2,4542.1,0.716]
[1758273463175,1.17258534,4542.2,4542.1,0.716]
[1758273463474,0.64204191,4542.2,4542.1,0.716]
[1758273464171,1.13394191,4542.2,4542.1,0.5064]
[1758273464369,1.66582491,4542.2,4542.1,0.5064]
[1758273464564,1.44482491,4542.2,4542.1,0.7125]
[1758273464874,1.66582491,4542.2,4542.1,0.7125]
[1758273466271,1.44482491,4542.2,4542.1,0.7125]
[1758273466473,1.66582491,4542.2,4542.1,0.7125]
[1758273467075,1.36842491,4542.2,4542.1,0.7125]
[1758273468375,1.66582491,4542.2,4542.1,0.7125]
[1758273468577,1.44482491,4542.2,4542.1,0.7125]
[1758273468778,1.66582491,4542.2,4542.1,0.7125]
[1758273469484,1.44482491,4542.2,4542.1,0.7125]
[1758273469782,1.66582491,4542.2,4542.1,0.7125]
[1758273470377,1.44482491,4542.2,4542.1,0.7125]
[1758273470579,1.66582491,4542.2,4542.1,0.7125]
[1758273473480,1.66620613,4542.2,4542.1,0.7125]
[1758273474279,1.36880613,4542.2,4542.1,0.7125]
[1758273474986,0.75210613,4542.2,4542.1,0.7125]
[1758273475187,0.97310613,4542.2,4542.1,0.7125]
[1758273476387,0.75210613,4542.2,4542.1,0.7125]
[1758273476586,0.97310613,4542.2,4542.1,0.7125]
[1758273477593,0.4005,4542.6,4542.5,1.25929387]
[1758273477787,0.84314054,4542.6,4542.5,1.55079387]
[1758273477988,0.62214054,4542.6,4542.5,1.55079387]
[1758273478189,0.84314054,4542.6,4542.5,1.55079387]
[1758273479290,0.84314054,4542.6,4542.5,1.75199387]
[1758273479487,0.62214054,4542.6,4542.5,1.75199387]
[1758273479692,0.3986,4543.5,4543.4,0.7427]
[1758273479890,0.6196,4543.5,4543.4,0.7427]
[1758273480192,0.8087,4543.5,4543.4,0.5307]
[1758273481690,35.674,4544.3,4543.5,0.2401]
[1758273481991,0.44108,4544.2,4543.6,0.3177]
[1758273482391,0.22008,4544.1,4544.0,0.1174]
[1758273482591,0.22008,4544.1,4544.0,0.4351]
[1758273482793,0.221,4544.2,4544.1,0.3177]
[1758273482992,35.674,4544.3,4544.1,0.3177]
[1758273483189,4.221,4544.2,4544.1,0.3177]
[1758273483996,35.674,4544.3,4544.1,0.3177]
[1758273484189,0.221,4544.2,4544.1,0.3177]
[1758273489602,0.74630425,4544.2,4544.1,0.3177]
[1758273491604,0.96132406,4544.2,4544.1,0.3177]
[1758273496806,0.96132406,4544.2,4544.1,0.5307]
[1758273497704,0.96132406,4544.2,4544.1,0.3177]
[1758273498406,4.96132406,4544.2,4544.1,0.3177]
[1758273500201,4.74032406,4544.2,4544.1,0.3177]
[1758273500505,0.96132406,4544.2,4544.1,0.7427]
[1758273501401,0.74032406,4544.2,4544.1,0.7427]
[1758273501603,0.96132406,4544.2,4544.1,0.7427]
[1758273511311,0.74032406,4544.2,4544.1,0.7427]
[1758273511512,0.96132406,4544.2,4544.1,0.7427]
[1758273512010,0.98307489,4544.2,4544.1,0.7427]
[1758273512415,0.76207489,4544.2,4544.1,0.7427]
[1758273512615,0.98307489,4544.2,4544.1,0.7427]
[1758273513512,2.5676102,4544.2,4544.1,0.7427]
[1758273517220,2.5676102,4544.2,4544.1,0.3177]
[1758273518821,0.98307489,4544.2,4544.1,0.3177]
[1758273523927,0.98307489,4544.2,4544.1,0.5128]
[1758273524125,0.98307489,4544.2,4544.1,0.3177]
[1758273524424,2.5676625,4544.2,4544.1,0.3177]
[1758273527826,0.98307489,4544.2,4544.1,0.5128]
[1758273532532,0.76207489,4544.2,4544.1,0.7067]
[1758273532727,0.98307489,4544.2,4544.1,0.7067]
[1758273536433,0.76207489,4544.2,4544.1,0.7067]
[1758273536634,0.98307489,4544.2,4544.1,0.7067]
[1758273537736,0.76207489,4544.2,4544.1,0.7067]
[1758273538036,2.5676625,4544.2,4544.1,0.3177]
[1758273538534,0.98307489,4544.2,4544.1,0.3177]
[1758273540330,0.98307489,4544.2,4544.1,0.5111]
[1758273543247,2.5676625,4544.2,4544.1,0.5111]
[1758273543444,0.98307489,4544.2,4544.1,0.01610846]
[1758273543644,0.95617489,4544.2,4544.1,0.4158]
[1758273543845,1.17717489,4544.2,4544.1,0.4158]
[1758273544042,0.76207489,4544.2,4544.1,0.4158]
[1758273544544,0.98307489,4544.2,4544.1,0.4158]
[1758273545139,2.56751538,4544.2,4544.1,0.4158]
[1758273545338,0.98307489,4544.2,4544.1,0.4158]
[1758273545548,0.98307489,4544.2,4544.1,0.7313]
[1758273547645,0.76207489,4544.2,4544.1,0.7313]
[1758273547843,0.98307489,4544.2,4544.1,0.7313]
[1758273548049,0.76207489,4544.2,4544.1,0.7313]
[1758273548251,0.98307489,4544.2,4544.1,0.7313]
[1758273548951,0.76207489,4544.2,4544.1,0.7313]
[1758273549144,0.98307489,4544.2,4544.1,0.7313]
[1758273550347,0.76207489,4544.2,4544.1,0.7313]
[1758273550648,0.98307489,4544.2,4544.1,0.7313]
[1758273551849,0.76207489,4544.2,4544.1,0.7313]
[1758273552349,0.95617489,4544.2,4544.1,0.7313]
[1758273552750,1.37307489,4544.2,4544.1,0.7313]
[1758273553450,1.15207489,4544.2,4544.1,0.7313]
[1758273553751,1.37307489,4544.2,4544.1,0.7313]
[1758273555051,1.67307489,4544.2,4544.1,0.7313]
[1758273556052,1.37307489,4544.2,4544.1,0.7313]
[1758273557356,1.15207489,4544.2,4544.1,0.7313]
[1758273557551,1.37307489,4544.2,4544.1,0.7313]
[1758273558552,1.15207489,4544.2,4544.1,0.7313]
[1758273558854,1.37307489,4544.2,4544.1,0.7313]
[1758273568668,1.67357489,4544.2,4544.1,0.7313]
[1758273569863,1.45257489,4544.2,4544.1,0.7313]
[1758273570257,1.67357489,4544.2,4544.1,0.7313]
[1758273577368,1.37307489,4544.2,4544.1,0.7313]
[1758273577771,1.67357489,4544.2,4544.1,0.7313]
[1758273585380,1.67443019,4544.2,4544.1,0.7313]
[1758273588182,1.37393019,4544.2,4544.1,0.7313]
[1758273588477,1.15293019,4544.2,4544.1,0.7313]
[1758273588677,1.37393019,4544.2,4544.1,0.7313]
[1758273590484,1.67443019,4544.2,4544.1,0.7313]
[1758273594081,1.37393019,4544.2,4544.1,0.7313]
[1758273594282,0.76293019,4544.2,4544.1,0.7313]
[1758273594481,0.98393019,4544.2,4544.1,0.7313]
[1758273595086,1.18393019,4544.2,4544.1,0.7313]
[1758273595386,1.88494049,4545.4,4544.1,4.95136]
[1758273595586,0.65857184,4545.3,4545.2,0.7247]
[1758273597178,0.85687184,4545.3,4545.2,0.7247]
[1758273597385,1.15347184,4545.3,4545.2,0.7247]
[1758273597586,1.15347184,4545.3,4545.2,0.3187]
[1758273597884,1.15347184,4545.3,4544.8,0.298]
[1758273598086,0.9159,4545.3,4544.8,0.298]
[1758273599083,0.9159,4545.3,4544.7,0.1227]
[1758273599388,0.713,4544.8,4544.7,0.438]
[1758273599589,0.934,4544.8,4544.7,0.438]
[1758273599785,0.934,4544.8,4544.7,0.641]
[1758273600192,0.934,4544.8,4544.7,0.8449]
[1758273600486,0.6401,4544.8,4544.7,0.8449]
[1758273600986,0.4191,4544.8,4544.7,0.8449]
[1758273601190,0.6401,4544.8,4544.7,0.8449]
[1758273601692,0.934,4544.8,4544.7,0.8449]
[1758273604688,0.4191,4545.5,4545.4,0.7222]
[1758273604893,35.664,4545.8,4545.7,0.4069]
[1758273605193,35.885,4545.8,4545.7,0.7222]
[1758273605587,36.0912,4545.8,4545.7,0.7222]
[1758273606991,35.8702,4545.8,4545.7,0.7222]
[1758273607190,36.0912,4545.8,4545.7,0.7222]
[1758273607391,36.84288381,4545.8,4545.7,0.7222]
[1758273608497,37.05578381,4545.8,4545.7,0.7222]
[1758273608795,36.83478381,4545.8,4545.7,0.7222]
[1758273608999,37.05578381,4545.8,4545.7,0.7222]
[1758273609200,37.34968381,4545.8,4545.7,0.7222]
[1758273611295,37.34968381,4545.8,4545.5,0.438]
[1758273611504,0.713,4545.6,4545.5,0.1227]
[1758273611706,1.46468381,4545.6,4545.5,0.1227]
[1758273612499,1.46454326,4545.6,4545.5,0.1227]
[1758273613199,0.713,4544.9,4544.8,0.5183]
[1758273613398,1.68554326,4544.9,4544.8,0.5183]
[1758273613701,1.39164326,4544.9,4544.8,0.7222]
[1758273614902,1.17064326,4544.9,4544.8,0.7222]
[1758273615097,1.39164326,4544.9,4544.8,0.7222]
[1758273617307,1.17064326,4544.9,4544.8,0.7222]
[1758273617497,1.39164326,4544.9,4544.8,0.7222]
[1758273619806,1.17064326,4544.9,4544.8,0.7222]
[1758273620005,1.39164326,4544.9,4544.8,0.7222]
[1758273621006,1.17064326,4544.9,4544.8,0.7222]
[1758273621307,1.39164326,4544.9,4544.8,0.7222]
[1758273624108,0.97254326,4544.9,4544.8,0.7222]
[1758273624612,0.23145321,4544.9,4544.8,0.7222]
[1758273624808,0.23187117,4545.6,4545.5,0.1163]
[1758273625006,1.39407777,4545.6,4545.5,0.8385]
[1758273629023,1.70797777,4545.6,4545.5,0.8385]
[1758273629420,1.70797777,4545.6,4545.5,0.6346]
[1758273629626,1.70797777,4545.6,4545.5,0.3153]
[1758273631228,0.2075,4544.8,4544.7,0.4219]
[1758273631422,0.9381,4544.8,4544.7,0.1227]
[1758273631623,1.69207777,4544.8,4544.7,0.1227]
[1758273632028,1.69207777,4544.8,4544.7,0.4219]
[1758273632528,1.69207777,4544.8,4544.7,0.6298]
[1758273641032,1.69152019,4544.8,4544.7,0.6298]
[1758273641636,1.37762019,4544.8,4544.7,0.8311]
[1758273642731,1.69152019,4544.8,4544.7,0.8311]
[1758273643730,1.15662019,4544.8,4544.7,0.8311]
[1758273643936,1.37762019,4544.8,4544.7,0.8311]
[1758273645237,1.37761271,4544.8,4544.7,0.8311]
[1758273647836,0.96091271,4544.8,4544.7,0.8311]
[1758273648037,1.18191271,4544.8,4544.7,0.8311]
[1758273649335,1.37761271,4544.8,4544.7,0.8311]
[1758273651640,1.69151271,4544.8,4544.7,0.8311]
[1758273652132,1.69151271,4544.8,4544.7,0.6298]
[1758273653628,1.69151271,4544.8,4544.7,0.8311]
[1758273654240,1.37761271,4544.8,4544.7,0.8311]
[1758273655639,1.15661271,4544.8,4544.7,0.8311]
[1758273655836,0.97441271,4544.8,4544.7,1.05113]
[1758273656040,0.75341271,4544.8,4544.7,1.05113]
[1758273656240,0.97441271,4544.8,4544.7,1.05113]
[1758273656841,0.97441271,4544.8,4544.7,0.8311]
[1758273657242,0.97441271,4544.8,4544.7,1.05113]
[1758273657744,0.97441271,4544.8,4544.7,0.8311]
[1758273660038,0.75341271,4544.8,4544.7,0.8311]
[1758273660539,0.97441271,4544.8,4544.7,4.8311]
[1758273662240,0.75341271,4544.8,4544.7,4.8311]
[1758273663144,0.75341271,4544.8,4544.7,5.05113]
[1758273663445,35.878,4545.5,4545.4,0.7207]
[1758273663649,36.40103022,4545.5,4545.4,0.7207]
[1758273665445,36.47983022,4545.5,4545.4,0.7207]
[1758273666247,36.98673022,4545.5,4545.4,0.5081]
[1758273666447,36.98673022,4545.5,4545.4,0.2943]
[1758273667346,36.98673022,4545.5,4545.4,0.5081]
[1758273667851,36.67333022,4545.5,4545.4,0.7207]
[1758273668756,36.98673022,4545.5,4545.4,0.7207]
[1758273669355,36.98673022,4545.5,4545.4,0.5081]
[1758273670847,36.98673022,4545.5,4545.4,0.2943]
[1758273672047,36.98673022,4545.5,4545.1,0.2943]
[1758273672252,0.395,4545.1,4545.0,0.6282]
[1758273672454,0.9294,4545.1,4545.0,0.6282]
[1758273672955,0.221,4545.1,4545.0,0.8408]
[1758273673453,34.2636,4545.5,4545.0,0.5465]
[1758273673752,0.74239615,4545.4,4545.2,0.2138]
[1758273674055,0.221,4545.4,4545.3,0.5081]
[1758273674355,0.74239619,4545.4,4545.3,0.5081]
[1758273674550,0.221,4545.4,4545.3,0.2138]
[1758273674752,0.221,4545.4,4545.3,0.5081]
[1758273675353,0.44599949,4545.4,4545.3,0.5081]
[1758273676154,0.44599949,4545.4,4545.3,0.2943]
[1758273676356,0.44600371,4545.4,4545.3,0.2943]
[1758273676753,0.44600371,4545.4,4545.3,0.5081]
[1758273677352,0.44600371,4545.4,4545.3,0.2943]
[1758273677949,0.44600371,4545.4,4545.3,2.4946]
[1758273680353,0.44607906,4545.4,4545.3,2.4946]
[1758273681058,0.44607906,4545.4,4545.3,2.7084]
[1758273684859,0.44607906,4545.4,4545.3,2.4946]
[1758273686359,0.44607906,4545.4,4545.3,2.7084]
[1758273687653,0.22507906,4545.4,4545.3,2.7084]
[1758273687855,0.44607906,4545.4,4545.3,2.7084]
[1758273688557,0.44607906,4545.4,4545.3,2.921]
[1758273694157,0.22507906,4545.4,4545.3,2.921]
[1758273694463,0.44607906,4545.4,4545.3,2.921]
[1758273695163,0.22507906,4545.4,4545.3,2.921]
[1758273695364,0.44607906,4545.4,4545.3,2.921]
[1758273695864,0.22507906,4545.4,4545.3,2.921]
[1758273696163,0.44607906,4545.4,4545.3,2.921]
[1758273708872,0.22507906,4545.4,4545.3,2.921]
[1758273709073,0.44607906,4545.4,4545.3,2.921]
[1758273716485,0.22507906,4545.4,4545.3,2.921]
[1758273716777,0.44607906,4545.4,4545.3,2.921]
[1758273719182,0.22507906,4545.4,4545.3,2.921]
[1758273719590,0.44607906,4545.4,4545.3,0.7207]
[1758273722386,0.22507906,4545.4,4545.3,0.7207]
[1758273722594,0.44607906,4545.4,4545.3,0.7207]
[1758273723992,0.22507906,4545.4,4545.3,0.7207]
[1758273724190,1.58444049,4545.5,4545.3,0.7207]
[1758273724191,1.58444049,4545.6,4545.3,4.7207]
[1758273724390,0.74860158,4545.5,4545.3,0.4264]
[1758273724690,1.58444049,4546.1,4545.5,0.5384]
[1758273724993,1.58444049,4546.1,4546.0,0.8376]
[1758273725186,0.74854394,4546.1,4546.0,0.8376]
[1758273727797,0.52754394,4546.1,4546.0,0.8376]
[1758273728297,0.74854394,4546.1,4546.0,0.8376]
[1758273730797,0.95184394,4546.1,4546.0,0.6282]
[1758273731094,1.16354394,4546.1,4546.0,0.8376]
[1758273731598,0.95184394,4546.1,4546.0,0.8376]
[1758273731899,0.74854394,4546.1,4546.0,0.8376]
[1758273732196,0.52754394,4546.1,4546.0,0.8376]
[1758273732397,0.74854394,4546.1,4546.0,0.8376]
[1758273732894,0.52754394,4546.1,4546.0,0.8376]
[1758273733093,0.74854394,4546.1,4546.0,0.8376]
[1758273735997,0.52754394,4546.1,4546.0,0.8376]
[1758273736296,0.97369211,4546.1,4546.0,0.8376]
[1758273739302,0.75269211,4546.1,4546.0,0.8376]
[1758273739500,0.97369211,4546.1,4546.0,0.8376]
[1758273744400,0.75269211,4546.1,4546.0,0.8376]
[1758273744601,0.97369211,4546.1,4546.0,0.8376]
[1758273749803,1.65229211,4546.1,4546.0,0.4252]
[1758273753109,1.65229211,4546.1,4546.0,0.6376]
[1758273754205,1.65229211,4546.1,4546.0,0.2992]
[1758273757610,1.43129211,4546.1,4546.0,0.2992]
[1758273757809,1.65229211,4546.1,4546.0,0.2992]
[1758273759312,1.15939211,4546.1,4546.0,0.8328]
[1758273759507,1.38039211,4546.1,4546.0,0.8328]
[1758273760012,1.65229211,4546.1,4546.0,0.8328]
[1758273760716,1.65106369,4546.1,4546.0,0.8328]
[1758273761806,1.43006369,4546.1,4546.0,0.8328]
[1758273762011,1.65106369,4546.1,4546.0,0.8328]
[1758273763115,1.43006369,4546.1,4546.0,0.8328]
[1758273763315,1.65106369,4546.1,4546.0,0.8328]
[1758273771625,1.65106369,4546.1,4546.0,0.6333]
[1758273773117,1.65106369,4546.1,4546.0,0.2992]
[1758273773911,1.65111547,4546.1,4546.0,0.2992]
[1758273774412,1.65111547,4546.1,4545.9,2.2003]
[1758273774413,1.37921547,4546.1,4545.9,2.2003]
[1758273774612,1.43011547,4546.0,4545.9,2.5146]
[1758273776225,1.43011547,4546.0,4545.9,2.727]
[1758273780324,1.15821547,4546.0,4545.9,2.9396]
[1758273780823,1.15841426,4546.0,4545.9,2.9396]
[1758273781421,1.48131426,4546.0,4545.3,0.302]
[1758273781620,0.2719,4545.8,4545.3,0.302]
[1758273781827,0.2016,4545.8,4545.7,0.7266]
[1758273782122,0.64677684,4545.8,4545.7,0.7266]
[1758273782322,1.1842993,4545.8,4545.7,0.7266]
[1758273783425,0.9632993,4545.8,4545.7,0.7266]
[1758273783628,1.1842993,4545.8,4545.7,0.7266]
[1758273786125,0.9632993,4545.8,4545.7,0.7266]
[1758273786331,1.1842993,4545.8,4545.7,0.7266]
[1758273789330,0.9632993,4545.8,4545.7,0.7266]
[1758273789528,1.1842993,4545.8,4545.7,0.7266]
[1758273791035,1.3881993,4545.8,4545.7,0.7266]
[1758273791231,1.6600993,4545.8,4545.7,0.7266]
[1758273793037,1.6600993,4545.8,4545.7,0.302]
[1758273793435,1.6600993,4545.8,4545.7,0.513]
[1758273793636,1.6600993,4545.8,4545.5,2.326]
[1758273793842,0.6774,4545.6,4545.5,2.5022]
[1758273794131,1.4390993,4545.6,4545.5,2.5022]
[1758273796138,1.4390993,4545.6,4545.5,2.7132]
[1758273797042,1.4390993,4545.6,4545.5,2.839]
[1758273797734,1.1671993,4545.6,4545.5,3.0526]
[1758273798241,1.3881993,4545.6,4545.5,3.0526]
[1758273799646,1.6600993,4545.6,4545.5,3.0526]
[1758273800038,1.4390993,4545.6,4545.5,3.0526]
[1758273800238,1.1671993,4545.6,4545.5,3.0526]
[1758273800446,1.3881993,4545.6,4545.5,3.0526]
[1758273801240,1.1842993,4545.6,4545.5,3.0526]
[1758273801644,0.9632993,4545.6,4545.5,3.0526]
[1758273801840,1.1842993,4545.6,4545.5,3.0526]
[1758273803344,0.7616993,4545.6,4545.5,3.0526]
[1758273803545,0.9826993,4545.6,4545.5,3.0526]
[1758273806551,1.6600993,4545.6,4545.5,3.0526]
[1758273807445,1.6611604,4545.6,4545.5,3.0526]
[1758273808647,1.3892604,4545.6,4545.5,3.0526]
[1758273814253,1.1853604,4545.6,4545.5,3.0526]
[1758273814450,0.9837604,4545.6,4545.5,3.0526]
[1758273814852,0.7627604,4545.6,4545.5,3.0526]
[1758273815053,0.9837604,4545.6,4545.5,3.0526]
[1758273815353,0.7627604,4545.6,4545.5,3.0526]
[1758273815554,0.9837604,4545.6,4545.5,3.0526]
[1758273817655,0.7627604,4545.6,4545.5,3.0526]
[1758273817851,0.9837604,4545.6,4545.5,3.0526]
[1758273818254,0.7627604,4545.6,4545.5,3.0526]
[1758273818553,0.9837604,4545.6,4545.5,3.0526]
[1758273826962,0.7627604,4545.6,4545.5,3.0526]
[1758273827163,0.9837604,4545.6,4545.5,3.0526]
[1758273827658,1.1958604,4545.6,4545.5,3.0526]
[1758273828864,0.9748604,4545.6,4545.5,3.0526]
[1758273829063,1.1958604,4545.6,4545.5,3.0526]
[1758273830165,0.9837604,4545.6,4545.5,3.0526]